bitfinex-derivatives/quotes_BTCF0:USTF0_20251009
["timestamp","ask_amount","ask_price","bid_price","bid_amount"]
[1760048708208,0.4085854,121630.0,121620.0,0.4891153]
[1760048708408,0.4085854,121630.0,121620.0,1.2319553]
[1760048708910,0.4085854,121630.0,121620.0,0.4891153]
[1760048709111,0.4085854,121630.0,121620.0,1.2319553]
[1760048711113,0.4085854,121630.0,121620.0,1.37968267]
[1760048711416,0.4085854,121630.0,121620.0,1.37960267]
[1760048712406,0.4085854,121630.0,121620.0,0.63684267]
[1760048712612,0.4085854,121630.0,121620.0,1.37960267]
[1760048714216,0.4085854,121630.0,121620.0,0.63684267]
[1760048714407,0.4085854,121630.0,121620.0,1.37956267]
[1760048714915,0.4085854,121630.0,121620.0,0.63684267]
[1760048715114,0.66560811,121630.0,121620.0,1.2317953]
[1760048716212,0.66560811,121630.0,121620.0,1.42386364]
[1760048716413,0.66560811,121630.0,121620.0,0.68118364]
[1760048716712,0.66560811,121630.0,121620.0,1.42382364]
[1760048723315,0.4085854,121630.0,121620.0,1.42382364]
[1760048723511,0.66560811,121630.0,121620.0,1.2317553]
[1760048727515,0.60132463,121630.0,121620.0,1.42449453]
[1760048733422,0.60132463,121630.0,121620.0,1.61657585]
[1760048734620,0.60132463,121630.0,121620.0,1.42449453]
[1760048738923,0.60132463,121630.0,121620.0,1.61656548]
[1760048740120,0.60132463,121630.0,121620.0,1.42449453]
[1760048742328,0.60132463,121630.0,121620.0,1.02449453]
[1760048742829,0.60132463,121630.0,121620.0,0.8317553]
[1760048743031,0.60132463,121630.0,121620.0,1.02449453]
[1760048744029,0.68255993,121630.0,121620.0,1.02449453]
[1760048745032,0.68255993,121630.0,121620.0,1.02382626]
[1760048745230,0.68255993,121630.0,121620.0,1.21656549]
[1760048746236,0.68255993,121630.0,121620.0,1.02449453]
[1760048746437,0.68255993,121630.0,121620.0,0.8317553]
[1760048746634,0.68255993,121630.0,121620.0,1.02449453]
[1760048746833,0.68255993,121630.0,121620.0,1.2165655]
[1760048749840,0.68255993,121630.0,121620.0,1.02382627]
[1760048750040,0.68255993,121630.0,121620.0,1.2165655]
[1760048750442,0.68255993,121630.0,121620.0,0.0069332]
[1760048750643,1.27529916,121630.0,121620.0,0.19901687]
[1760048750840,1.27529916,121630.0,121620.0,0.94145687]
[1760048750841,1.08255993,121630.0,121620.0,0.94145687]
[1760048751344,1.27529916,121630.0,121620.0,0.94145687]
[1760048752645,1.27529916,121630.0,121620.0,0.19901687]
[1760048753145,1.27529916,121630.0,121620.0,0.94145687]
[1760048754345,1.27529916,121630.0,121620.0,0.19308367]
[1760048754546,2.01773916,121630.0,121620.0,0.16401687]
[1760048755649,0.1160618,121620.0,121610.0,0.74244]
[1760048755850,0.90277556,121620.0,121610.0,0.74244]
[1760048761758,0.90277556,121620.0,121610.0,0.93542802]
[1760048763057,0.90277556,121620.0,121610.0,0.74344]
[1760048764158,0.90277556,121620.0,121610.0,0.93541039]
[1760048764461,1.49551479,121620.0,121610.0,0.19297039]
[1760048764761,0.1183787,121610.0,121600.0,0.96248588]
[1760048764954,0.86509246,121610.0,121600.0,0.33336588]
[1760048765356,0.86509246,121610.0,121600.0,0.09804969]
[1760048767064,0.86509246,121610.0,121600.0,0.09904969]
[1760048770865,0.86509246,121610.0,121600.0,0.12149969]
[1760048773069,0.78385716,121610.0,121600.0,0.12149969]
[1760048773271,0.86509246,121610.0,121600.0,0.12149969]
[1760048773467,0.86509246,121610.0,121600.0,0.35681588]
[1760048774066,0.86509246,121610.0,121600.0,0.33436588]
[1760048775468,0.78385716,121610.0,121600.0,0.09904969]
[1760048775669,0.86509246,121610.0,121600.0,0.09904969]
[1760048777469,0.86509246,121610.0,121600.0,0.33436588]
[1760048778770,0.86509246,121610.0,121600.0,0.33636588]
[1760048781565,0.86509246,121610.0,121600.0,0.10104969]
[1760048782972,0.86509246,121610.0,121600.0,0.29297277]
[1760048784172,0.86509246,121610.0,121600.0,0.10104969]
[1760048785574,0.86509246,121610.0,121600.0,0.33636588]
[1760048787969,0.86509246,121610.0,121600.0,0.35881588]
[1760048789475,0.73674448,121610.0,121600.0,0.35881588]
[1760048789775,0.73674448,121610.0,121600.0,0.12349969]
[1760048789969,0.73674448,121610.0,121600.0,0.10104969]
[1760048792273,0.73674448,121610.0,121600.0,0.18324539]
[1760048795979,0.65550918,121610.0,121600.0,0.18324539]
[1760048797076,0.3983787,121610.0,121600.0,0.20616539]
[1760048797277,0.65550918,121610.0,121600.0,0.20616539]
[1760048797480,0.65550918,121610.0,121600.0,0.18324539]
[1760048798180,0.65550918,121610.0,121600.0,0.20616539]
[1760048800986,0.73674448,121610.0,121600.0,0.12396969]
[1760048802584,0.479614,121610.0,121600.0,0.12396969]
[1760048802782,0.73674448,121610.0,121600.0,0.10104969]
[1760048803882,0.65550918,121610.0,121600.0,0.10104969]
[1760048804083,0.73674448,121610.0,121600.0,0.10104969]
[1760048804384,0.73674448,121610.0,121600.0,0.12396969]
[1760048807186,0.73674448,121610.0,121600.0,0.10104969]
[1760048807687,0.73674448,121610.0,121600.0,0.12327969]
[1760048809091,0.73674448,121610.0,121600.0,0.47764379]
[1760048810193,0.73674448,121610.0,121600.0,0.55983949]
[1760048810494,0.73674448,121610.0,121600.0,0.55783949]
[1760048811194,0.73674448,121610.0,121600.0,0.20247539]
[1760048811795,0.479614,121610.0,121600.0,0.20247539]
[1760048811997,0.73674448,121610.0,121600.0,0.20247539]
[1760048812998,0.73674468,121610.0,121600.0,0.20247539]
[1760048813199,0.73674468,121610.0,121600.0,0.55683949]
[1760048814395,0.73674468,121610.0,121600.0,0.79284379]
[1760048815201,0.73674468,121610.0,121600.0,0.43847969]
[1760048815398,0.65455578,121610.0,121600.0,0.43847969]
[1760048816097,0.57332048,121610.0,121600.0,0.43847969]
[1760048816296,0.65455578,121610.0,121600.0,0.43847969]
[1760048816497,0.65455578,121610.0,121600.0,0.20247539]
[1760048817506,0.3974253,121610.0,121600.0,0.20247539]
[1760048817705,0.65455578,121610.0,121600.0,0.20247539]
[1760048820101,0.73674468,121610.0,121600.0,0.20247539]
[1760048820706,0.73674468,121610.0,121600.0,0.94495539]
[1760048822208,0.73674468,121610.0,121600.0,1.18094264]
[1760048824213,0.73674468,121610.0,121600.0,0.94495539]
[1760048824412,0.73674468,121610.0,121600.0,0.20247539]
[1760048824607,0.73674468,121610.0,121600.0,0.94495539]
[1760048825510,0.73674468,121610.0,121600.0,1.23997596]
[1760048826612,0.73674468,121610.0,121600.0,0.49749596]
[1760048826807,0.73674468,121610.0,121600.0,1.23997596]
[1760048827009,0.73674468,121610.0,121600.0,0.49749596]
[1760048827210,0.73674468,121610.0,121600.0,1.21774596]
[1760048829112,0.3983789,121610.0,121600.0,1.61774596]
[1760048829314,0.31619,121610.0,121600.0,1.89756644]
[1760048829517,0.31619,121610.0,121600.0,1.64043596]
[1760048830112,0.3983789,121610.0,121600.0,1.64043596]
[1760048830417,0.31619,121610.0,121600.0,1.64043596]
[1760048831709,0.31619,121610.0,121600.0,1.60254587]
[1760048832014,0.28,121610.0,121600.0,1.61130587]
[1760048832816,0.28,121610.0,121600.0,1.35417539]
[1760048833016,0.28,121610.0,121600.0,1.61130587]
[1760048834016,0.28,121610.0,121600.0,1.84729028]
[1760048836219,0.28,121610.0,121600.0,1.84829028]
[1760048837721,0.28,121610.0,121600.0,1.10581028]
[1760048837918,0.28,121610.0,121600.0,1.84821028]
[1760048838620,0.28,121610.0,121600.0,1.5910798]
[1760048838814,0.28,121610.0,121600.0,1.84821028]
[1760048840720,0.02667271,121610.0,121600.0,1.84821028]
[1760048840924,0.1168623,121620.0,121610.0,0.1048789]
[1760048841224,0.4680976,121620.0,121610.0,0.1048789]
[1760048841817,0.4680976,121620.0,121610.0,0.8472789]
[1760048844119,0.4461476,121620.0,121610.0,0.8472789]
[1760048844419,0.3870221,121620.0,121610.0,0.8472389]
[1760048844824,0.3870221,121620.0,121610.0,0.8482389]
[1760048845026,0.27,121620.0,121610.0,0.8482389]
[1760048845325,0.27,121620.0,121610.0,1.50536938]
[1760048846124,0.27,121620.0,121610.0,1.2482389]
[1760048846325,0.27,121620.0,121610.0,1.50536938]
[1760048848331,0.27,121620.0,121610.0,1.2482389]
[1760048848628,0.27,121620.0,121610.0,1.50536938]
[1760048849427,0.27,121620.0,121610.0,1.44096264]
[1760048856222,0.27,121620.0,121610.0,1.92829636]
[1760048856435,0.27,121620.0,121610.0,1.73553262]
[1760048856737,0.07702961,121620.0,121610.0,1.73553262]
[1760048856931,0.30967684,121640.0,121630.0,0.1033154]
[1760048857132,0.65091214,121640.0,121630.0,0.8456354]
[1760048860137,0.65091214,121640.0,121630.0,1.14017379]
[1760048860538,0.65091214,121640.0,121630.0,1.28746139]
[1760048861130,0.65091214,121640.0,121630.0,0.54518139]
[1760048861834,0.84363588,121640.0,121630.0,1.28746139]
[1760048862036,0.84363588,121640.0,121630.0,0.992883]
[1760048864544,0.84463588,121640.0,121630.0,0.992883]
[1760048866643,0.84563588,121640.0,121630.0,0.992883]
[1760048869346,0.84563588,121640.0,121630.0,0.8455954]
[1760048871345,0.84563588,121640.0,121630.0,1.03706928]
[1760048873837,0.84563588,121640.0,121630.0,0.8455954]
[1760048875545,0.84563588,121640.0,121630.0,0.1033154]
[1760048875746,0.84563588,121640.0,121630.0,0.8455154]
[1760048877852,0.76440058,121640.0,121630.0,0.8455154]
[1760048878150,0.84563588,121640.0,121630.0,0.8455154]
[1760048878549,0.84563588,121640.0,121630.0,1.03698928]
[1760048879651,0.76440058,121640.0,121630.0,1.03698928]
[1760048879847,0.84563588,121640.0,121630.0,0.9929966]
[1760048883555,0.4601884,121640.0,121630.0,0.9929966]
[1760048883757,0.84563588,121640.0,121630.0,0.9929966]
[1760048885459,0.84563588,121640.0,121630.0,0.9108212]
[1760048886149,0.84563588,121640.0,121630.0,0.1686212]
[1760048886350,0.84563588,121640.0,121630.0,0.76334]
[1760048886862,0.84563588,121640.0,121620.0,0.19147388]
[1760048886863,0.1162554,121630.0,121620.0,0.19147388]
[1760048887052,0.85293818,121630.0,121620.0,0.93367388]
[1760048889965,0.77170288,121630.0,121620.0,0.95540388]
[1760048892566,0.3862554,121630.0,121620.0,0.29538598]
[1760048892766,0.57897914,121630.0,121620.0,1.03758598]
[1760048894968,0.66021444,121630.0,121620.0,1.03758598]
[1760048895563,0.4674907,121630.0,121620.0,1.03758598]
[1760048895772,0.66021444,121630.0,121620.0,1.03758598]
[1760048899272,0.66021444,121630.0,121620.0,0.8461121]
[1760048904269,0.0951121,121620.0,121610.0,0.25739017]
[1760048904475,0.85294488,121620.0,121610.0,0.40507876]
[1760048904673,0.85294488,121620.0,121610.0,1.14727876]
[1760048904872,0.85294488,121620.0,121610.0,0.91161859]
[1760048905174,0.85294488,121620.0,121610.0,0.76393]
[1760048905573,0.85294488,121620.0,121610.0,0.21372517]
[1760048905774,0.85294488,121620.0,121610.0,0.95592517]
[1760048907776,0.85294488,121620.0,121610.0,0.21372517]
[1760048908178,0.85294488,121620.0,121610.0,0.95592517]
[1760048910180,0.85294488,121620.0,121610.0,0.95692517]
[1760048911481,0.72457978,121620.0,121610.0,0.95692517]
[1760048915480,0.72457978,121620.0,121610.0,0.19299517]
[1760048915682,0.72457978,121620.0,121610.0,0.93523517]
[1760048916581,0.72457978,121620.0,121610.0,0.19299517]
[1760048916782,0.72457978,121620.0,121610.0,0.93523517]
[1760048917689,0.72457978,121620.0,121610.0,0.74324]
[1760048918385,0.72457978,121620.0,121610.0,0.001]
[1760048918578,1.12457978,121620.0,121610.0,0.89429728]
[1760048919776,1.12457978,121620.0,121610.0,0.70232]
[1760048920482,1.12457978,121620.0,121610.0,0.19295364]
[1760048922391,1.46681978,121620.0,121610.0,0.19295364]
[1760048923391,1.2097374,121620.0,121610.0,0.19295364]
[1760048923584,1.46681978,121620.0,121610.0,0.19295364]
[1760048924192,1.46681978,121620.0,121610.0,0.001]
[1760048924491,1.46681978,121620.0,121610.0,0.192891]
[1760048926789,0.72457978,121620.0,121610.0,0.192891]
[1760048926989,1.46685978,121620.0,121610.0,0.192891]
[1760048927988,1.46685978,121620.0,121610.0,0.001]
[1760048929188,1.46685978,121620.0,121610.0,0.192891]
[1760048931297,0.72457978,121620.0,121610.0,0.192891]
[1760048931491,1.46685978,121620.0,121610.0,0.192891]
[1760048932194,0.4674974,121620.0,121610.0,0.215321]
[1760048932394,0.72457978,121620.0,121610.0,0.192891]
[1760048932585,1.46685978,121620.0,121610.0,0.215321]
[1760048932786,0.72457978,121620.0,121610.0,0.215321]
[1760048932994,1.46685978,121620.0,121610.0,0.215321]
[1760048933999,0.72457978,121620.0,121610.0,0.215321]
[1760048934194,1.46685978,121620.0,121610.0,0.215321]
[1760048934688,0.72457978,121620.0,121610.0,0.215321]
[1760048934893,1.46685978,121620.0,121610.0,0.215321]
[1760048936097,1.38562448,121620.0,121610.0,0.215321]
[1760048936299,0.4674974,121620.0,121610.0,0.2975099]
[1760048936499,0.72457978,121620.0,121610.0,0.2975099]
[1760048937200,0.72457978,121620.0,121610.0,0.215321]
[1760048937600,0.72457978,121620.0,121610.0,0.02343]
[1760048939196,0.72457978,121620.0,121610.0,0.21537025]
[1760048940500,0.72457978,121620.0,121610.0,0.02343]
[1760048941504,0.72457978,121620.0,121610.0,0.1056189]
[1760048941704,0.4674974,121620.0,121610.0,0.1056189]
[1760048942003,0.4674974,121620.0,121610.0,0.5056189]
[1760048943306,0.72457978,121620.0,121610.0,0.5056189]
[1760048944107,0.4674974,121620.0,121610.0,0.5056189]
[1760048944404,0.4674974,121620.0,121610.0,0.69753815]
[1760048945303,0.72457978,121620.0,121610.0,1.43977815]
[1760048946107,0.72457978,121620.0,121610.0,0.95758925]
[1760048947704,0.72457978,121620.0,121610.0,0.21534925]
[1760048947906,0.72457978,121620.0,121610.0,0.93515925]
[1760048948206,0.72457978,121620.0,121610.0,0.95789925]
[1760048948702,0.72457978,121620.0,121610.0,0.21565925]
[1760048949008,0.72457978,121620.0,121610.0,0.95789925]
[1760048949208,0.72457978,121620.0,121610.0,0.93515925]
[1760048949606,0.72457978,121620.0,121610.0,0.95789925]
[1760048950308,0.72457978,121620.0,121610.0,0.21565925]
[1760048950603,0.4674974,121620.0,121610.0,0.95789925]
[1760048950809,0.72457978,121620.0,121610.0,0.21565925]
[1760048951011,0.72457978,121620.0,121610.0,0.95789925]
[1760048951709,0.72457978,121620.0,121610.0,1.04008815]
[1760048957114,0.72457978,121620.0,121610.0,0.95789925]
[1760048961018,0.72457978,121620.0,121610.0,1.04008815]
[1760048961214,0.72457978,121620.0,121610.0,0.8481689]
[1760048961414,0.72457978,121620.0,121610.0,1.04010717]
[1760048962113,0.4674974,121620.0,121610.0,1.04010717]
[1760048962319,0.72457978,121620.0,121610.0,1.04010717]
[1760048964322,0.72457978,121620.0,121610.0,0.95791827]
[1760048964520,0.72457978,121620.0,121610.0,0.95787827]
[1760048965024,0.72457978,121620.0,121610.0,0.76594]
[1760048966518,0.72457978,121620.0,121610.0,0.02374]
[1760048966723,0.72457978,121620.0,121610.0,0.76594]
[1760048970023,0.72457978,121620.0,121610.0,0.02374]
[1760048970224,0.72457978,121620.0,121610.0,0.76594]
[1760048970819,0.72457978,121620.0,121610.0,0.02374]
[1760048971024,0.72457978,121620.0,121610.0,0.76594]
[1760048971430,0.85308302,121620.0,121610.0,0.76594]
[1760048974927,0.85308302,121620.0,121610.0,0.91358591]
[1760048976431,0.85308302,121620.0,121610.0,0.76594]
[1760048977927,0.85308302,121620.0,121610.0,0.02374]
[1760048978133,0.85308302,121620.0,121610.0,0.76594]
[1760048979525,0.85308302,121620.0,121610.0,0.7659]
[1760048982833,0.85308302,121620.0,121610.0,0.91352694]
[1760048983437,0.85308302,121620.0,121610.0,0.7659]
[1760048983638,0.85308302,121620.0,121610.0,0.91352401]
[1760048985239,0.85308302,121620.0,121610.0,0.7659]
[1760048985434,0.85308302,121620.0,121610.0,0.02374]
[1760048985634,0.85308302,121620.0,121610.0,0.95783827]
[1760048987242,0.77184772,121620.0,121610.0,0.95783827]
[1760048987539,0.85308302,121620.0,121610.0,0.95783827]
[1760048989243,0.85308302,121620.0,121610.0,0.7659]
[1760048990343,0.77184772,121620.0,121610.0,0.7659]
[1760048990543,0.85308302,121620.0,121610.0,0.7659]
[1760048993644,0.4674974,121620.0,121610.0,0.7659]
[1760048993840,0.85308302,121620.0,121610.0,0.7659]
[1760048994144,0.85308302,121620.0,121610.0,0.91354484]
[1760048994942,0.85308302,121620.0,121610.0,0.7659]
[1760048996843,0.4674974,121620.0,121610.0,0.7659]
[1760048997043,0.85308302,121620.0,121610.0,0.7659]
[1760048998140,0.4674974,121620.0,121610.0,0.7659]
[1760048998338,0.4674974,121620.0,121610.0,0.8480889]
[1760048998745,0.85308302,121620.0,121610.0,0.8480889]
[1760048999043,0.4674974,121620.0,121610.0,0.95783827]
[1760048999244,0.85308302,121620.0,121610.0,0.95783827]
[1760048999644,0.85308302,121620.0,121610.0,1.10552957]
[1760049000045,0.85308302,121620.0,121610.0,0.9135913]
[1760049001245,0.85308302,121620.0,121610.0,0.7659]
[1760049001447,0.85308302,121620.0,121610.0,0.95783827]
[1760049002649,0.85308302,121620.0,121610.0,0.7659]
[1760049003946,0.4674974,121620.0,121610.0,0.7659]
[1760049004244,0.49687281,121620.0,121610.0,0.99578746]
[1760049004442,0.49687281,121620.0,121610.0,1.18858027]
[1760049004646,0.68966562,121620.0,121610.0,0.99578746]
[1760049004844,0.49687281,121620.0,121610.0,1.18858027]
[1760049005048,0.49687281,121620.0,121610.0,1.04084171]
[1760049005244,0.49687281,121620.0,121610.0,0.8480489]
[1760049005245,0.30408,121620.0,121610.0,0.8480489]
[1760049005451,0.77184772,121620.0,121610.0,0.76582]
[1760049005652,0.77184772,121620.0,121610.0,0.8480089]
[1760049006150,0.77184772,121620.0,121610.0,0.1059289]
[1760049006351,0.77184772,121620.0,121610.0,0.8480089]
[1760049007052,0.77184772,121620.0,121610.0,0.1059289]
[1760049007752,0.77184772,121620.0,121610.0,0.8480089]
[1760049011957,0.85308302,121620.0,121610.0,0.8480089]
[1760049012358,0.85308302,121620.0,121610.0,1.03994717]
[1760049012559,0.85308302,121620.0,121610.0,0.29786717]
[1760049012959,0.85308302,121620.0,121610.0,1.03994717]
[1760049013564,0.85308302,121620.0,121610.0,0.8480089]
[1760049016963,0.77184772,121620.0,121610.0,0.8480089]
[1760049021367,0.77184772,121620.0,121610.0,0.001]
[1760049021568,0.77184772,121620.0,121610.0,0.02246]
[1760049021865,0.77184772,121620.0,121610.0,0.7645]
[1760049022061,0.85308302,121620.0,121610.0,0.7645]
[1760049024370,0.85308302,121620.0,121610.0,0.95643827]
[1760049026270,0.4674974,121620.0,121610.0,0.95643827]
[1760049026473,0.85308302,121620.0,121610.0,0.95643827]
[1760049026967,0.85308302,121620.0,121610.0,0.7645]
[1760049027972,0.85308302,121620.0,121610.0,0.95643827]
[1760049029476,0.85308302,121620.0,121610.0,1.03862687]
[1760049030375,0.85308302,121620.0,121610.0,0.8466886]
[1760049031584,0.85308302,121620.0,121610.0,1.03862687]
[1760049033489,0.72455568,121620.0,121610.0,1.03862687]
[1760049036488,0.72455568,121620.0,121610.0,0.8466886]
[1760049038985,0.72455568,121620.0,121610.0,1.03862687]
[1760049041492,0.72455568,121620.0,121610.0,0.8466886]
[1760049042596,0.72455568,121620.0,121610.0,1.03862687]
[1760049043694,0.72455568,121620.0,121610.0,0.8466886]
[1760049043892,0.72455568,121620.0,121610.0,1.03880709]
[1760049044995,0.72455568,121620.0,121610.0,0.8466886]
[1760049046187,0.72455568,121620.0,121610.0,1.03880709]
[1760049050896,0.64332038,121620.0,121610.0,1.03880709]
[1760049051097,0.72455568,121620.0,121610.0,1.03880709]
[1760049060703,0.4674974,121620.0,121610.0,1.03880709]
[1760049061002,0.72455568,121620.0,121610.0,1.03880709]
[1760049064504,0.64237358,121620.0,121610.0,1.18660094]
[1760049065603,0.64237358,121620.0,121610.0,0.99448245]
[1760049066206,0.64237358,121620.0,121610.0,0.8466886]
[1760049066805,0.64237358,121620.0,121610.0,1.03880709]
[1760049070302,0.64237358,121620.0,121610.0,1.03864709]
[1760049070503,0.64237358,121620.0,121610.0,0.8465286]
[1760049070906,0.64237358,121620.0,121610.0,0.99431894]
[1760049071709,0.64237358,121620.0,121610.0,0.8465286]
[1760049074205,0.64237358,121620.0,121610.0,1.03864709]
[1760049075005,0.72455528,121620.0,121610.0,1.03864709]
[1760049076203,0.72455528,121620.0,121610.0,0.29676699]
[1760049076507,0.72455528,121620.0,121610.0,0.8464885]
[1760049076808,0.72455528,121620.0,121610.0,0.99427714]
[1760049077611,0.72455528,121620.0,121610.0,0.8464885]
[1760049078109,0.72455528,121620.0,121610.0,0.1046485]
[1760049078308,0.72455528,121620.0,121610.0,0.8464885]
[1760049079013,0.72455528,121620.0,121610.0,1.03860699]
[1760049081313,0.64331998,121620.0,121610.0,1.03860699]
[1760049081512,0.72455528,121620.0,121610.0,1.03860699]
[1760049081911,0.72455528,121620.0,121610.0,1.79676699]
[1760049082109,0.72455528,121620.0,121610.0,2.53860699]
[1760049082512,0.72455528,121620.0,121610.0,2.3464885]
[1760049083013,0.72455528,121620.0,121610.0,1.6046485]
[1760049083213,0.72455528,121620.0,121610.0,2.3464885]
[1760049083614,0.72455528,121620.0,121610.0,1.6046485]
[1760049083815,0.72455528,121620.0,121610.0,2.53860699]
[1760049086621,0.72455528,121620.0,121610.0,1.79676699]
[1760049087118,0.72455528,121620.0,121610.0,2.53856699]
[1760049090219,0.72455528,121620.0,121610.0,0.29676699]
[1760049090423,0.72455528,121620.0,121610.0,1.03856699]
[1760049090719,0.72455528,121620.0,121610.0,2.53856699]
[1760049092419,0.72455528,121620.0,121610.0,1.79676699]
[1760049092913,0.72455528,121620.0,121610.0,0.21457849]
[1760049093111,0.72455528,121620.0,121610.0,0.78739849]
[1760049093522,0.8530946,121620.0,121610.0,0.78739849]
[1760049093715,0.8530946,121620.0,121610.0,0.19311849]
[1760049093915,0.8530946,121620.0,121610.0,0.93491849]
[1760049094623,0.8530946,121620.0,121610.0,0.7428]
[1760049095821,0.8530946,121620.0,121610.0,0.93491849]
[1760049097120,0.8530946,121620.0,121610.0,0.89057843]
[1760049097920,0.8530946,121620.0,121610.0,0.7428]
[1760049098317,0.8530946,121620.0,121610.0,0.93491849]
[1760049100821,0.8530946,121620.0,121610.0,0.89056232]
[1760049101621,0.8530946,121620.0,121610.0,0.7428]
[1760049101924,0.8530946,121620.0,121610.0,0.93491849]
[1760049103025,1.0458934,121620.0,121610.0,0.001]
[1760049103224,1.0458934,121620.0,121610.0,0.74276]
[1760049103424,0.8530946,121620.0,121610.0,0.74276]
[1760049104428,0.8530946,121620.0,121610.0,0.93487849]
[1760049105528,0.7718593,121620.0,121610.0,0.93487849]
[1760049105823,0.8530946,121620.0,121610.0,0.93487849]
[1760049107323,0.7718593,121620.0,121610.0,0.93487849]
[1760049107523,0.8530946,121620.0,121610.0,0.93487849]
[1760049108025,0.8530946,121620.0,121610.0,0.19311849]
[1760049108226,0.8530946,121620.0,121610.0,0.93487849]
[1760049109422,1.4458934,121620.0,121610.0,0.19311849]
[1760049109828,2.1876134,121620.0,121610.0,0.19311849]
[1760049110428,2.1876134,121620.0,121610.0,0.001]
[1760049114034,2.1876134,121620.0,121610.0,0.19311849]
[1760049115230,2.1876134,121620.0,121610.0,0.001]
[1760049117638,2.1876134,121620.0,121610.0,0.19311849]
[1760049118834,2.1876134,121620.0,121610.0,0.001]
[1760049120138,2.1063781,121620.0,121610.0,0.19311849]
[1760049120438,2.1876134,121620.0,121610.0,0.19311849]
[1760049121738,1.4458934,121620.0,121610.0,0.19311849]
[1760049121939,2.1876534,121620.0,121610.0,0.19311849]
[1760049123739,2.1876534,121620.0,121610.0,0.001]
[1760049125035,2.1876534,121620.0,121610.0,0.19311849]
[1760049129548,2.1064181,121620.0,121610.0,0.19311849]
[1760049129738,2.1876534,121620.0,121610.0,0.19311849]
[1760049131151,2.1876534,121620.0,121610.0,0.001]
[1760049132244,2.1876534,121620.0,121610.0,0.19311849]
[1760049133145,0.1178589,121610.0,121600.0,0.24581458]
[1760049133348,1.0574906,121610.0,121600.0,0.24581458]
[1760049133547,1.0574906,121610.0,121600.0,0.21723264]
[1760049133942,1.0574906,121610.0,121600.0,0.06946775]
[1760049136448,1.0574906,121610.0,121600.0,0.07046775]
[1760049137453,1.0574906,121610.0,121600.0,0.21822695]
[1760049139053,0.1178724,121590.0,121580.0,0.24059499]
[1760049139245,0.77347,121590.0,121580.0,0.19701562]
[1760049139455,0.8547053,121590.0,121580.0,0.19701562]
[1760049140356,0.8547053,121590.0,121580.0,0.00493482]
[1760049140662,0.8547053,121590.0,121580.0,0.19904789]
[1760049141859,0.8547053,121590.0,121580.0,0.00693482]
[1760049142365,0.8547053,121590.0,121580.0,0.01683203]
[1760049143461,0.4691077,121590.0,121580.0,0.01683203]
[1760049143770,0.8547053,121590.0,121580.0,0.08221146]
[1760049144066,0.8547053,121590.0,121580.0,0.00793482]
[1760049144867,0.8547053,121590.0,121580.0,0.01671908]
[1760049145565,1.0475041,121590.0,121580.0,0.01671908]
[1760049145770,1.0475041,121590.0,121580.0,0.00793482]
[1760049146068,0.8547053,121590.0,121580.0,0.00793482]
[1760049146367,1.0475041,121590.0,121580.0,0.01673156]
[1760049146667,1.7893041,121590.0,121580.0,0.00793482]
[1760049147568,1.7893041,121590.0,121580.0,0.07324192]
[1760049148865,1.4475041,121590.0,121580.0,2e-08]
[1760049149172,0.1178859,121570.0,121560.0,0.1970487]
[1760049149358,0.7734835,121570.0,121560.0,0.1970487]
[1760049149560,0.8547188,121570.0,121560.0,0.1970487]
[1760049150170,0.85478501,121570.0,121560.0,0.1970487]
[1760049150372,1.59658501,121570.0,121560.0,0.01379602]
[1760049150571,1.59662501,121570.0,121560.0,0.01379602]
[1760049151468,0.85478501,121570.0,121560.0,0.08282375]
[1760049151669,1.59662501,121570.0,121560.0,0.01579602]
[1760049151870,1.59662501,121570.0,121560.0,0.01779602]
[1760049154877,1.59662501,121570.0,121560.0,0.00893563]
[1760049155673,1.46837545,121570.0,121560.0,0.00893563]
[1760049156176,1.46837545,121570.0,121560.0,0.01775796]
[1760049157474,0.72653545,121570.0,121560.0,0.01775796]
[1760049157778,1.46841545,121570.0,121560.0,0.01775796]
[1760049158574,0.46918741,121570.0,121560.0,0.01775796]
[1760049158775,1.38718015,121570.0,121560.0,0.01775796]
[1760049158980,1.46841545,121570.0,121560.0,0.01775796]
[1760049159278,1.46841545,121570.0,121560.0,0.08285214]
[1760049159577,1.46841545,121570.0,121560.0,0.01775796]
[1760049160575,0.72653545,121570.0,121560.0,0.01775796]
[1760049160778,1.46841545,121570.0,121560.0,0.01775796]
[1760049163179,0.72653545,121570.0,121560.0,0.01775796]
[1760049163376,1.46845545,121570.0,121560.0,0.01775796]
[1760049163680,1.72580349,121570.0,121560.0,0.01775796]
[1760049163982,1.72580349,121570.0,121560.0,0.08381237]
[1760049164478,1.46845545,121570.0,121560.0,0.08381237]
[1760049164679,1.72580349,121570.0,121560.0,0.08381237]
[1760049166883,1.72580349,121570.0,121560.0,0.07499004]
[1760049168084,1.72580349,121570.0,121560.0,0.07399004]
[1760049168676,1.72580349,121570.0,121560.0,0.07199004]
[1760049178793,0.98388349,121570.0,121560.0,0.07199004]
[1760049178994,1.72580349,121570.0,121560.0,0.07199004]
[1760049180394,1.64456819,121570.0,121560.0,0.07199004]
[1760049180599,1.72580349,121570.0,121560.0,0.07199004]
[1760049184491,0.98388349,121570.0,121560.0,0.07199004]
[1760049184994,1.72580349,121570.0,121560.0,0.07199004]
[1760049185690,0.98388349,121570.0,121560.0,0.07199004]
[1760049185894,1.72580349,121570.0,121560.0,0.07199004]
[1760049188995,0.98388349,121570.0,121560.0,0.07199004]
[1760049189400,1.21110741,121570.0,121560.0,0.07199004]
[1760049189600,1.46845545,121570.0,121560.0,0.07199004]
[1760049191997,0.72653545,121570.0,121560.0,0.07199004]
[1760049192197,1.46845545,121570.0,121560.0,0.07199004]
[1760049193693,0.72653545,121570.0,121560.0,0.07199004]
[1760049193898,1.46845545,121570.0,121560.0,0.07199004]
[1760049196098,0.72653545,121570.0,121560.0,0.07199004]
[1760049196298,1.46845545,121570.0,121560.0,0.07199004]
[1760049198493,1.72580349,121570.0,121560.0,0.07199004]
[1760049200708,0.46918741,121570.0,121560.0,0.07199004]
[1760049200898,1.72580349,121570.0,121560.0,0.07199004]
[1760049201099,1.46845545,121570.0,121560.0,0.07199004]
[1760049202602,1.38722015,121570.0,121560.0,0.07199004]
[1760049202803,1.46845545,121570.0,121560.0,0.07199004]
[1760049203105,1.72580349,121570.0,121560.0,0.07199004]
[1760049204604,1.64456819,121570.0,121560.0,0.07199004]
[1760049204806,1.72580349,121570.0,121560.0,0.07199004]
[1760049206100,1.64456819,121570.0,121560.0,0.07199004]
[1760049206404,1.72580349,121570.0,121560.0,0.07199004]
[1760049207206,0.98388349,121570.0,121560.0,0.07199004]
[1760049207401,1.72580349,121570.0,121560.0,0.07199004]
[1760049208506,0.90264819,121570.0,121560.0,0.07199004]
[1760049208708,1.72580349,121570.0,121560.0,0.07199004]
[1760049209008,0.98388349,121570.0,121560.0,0.07199004]
[1760049209202,1.72576349,121570.0,121560.0,0.07199004]
[1760049209804,0.98388349,121570.0,121560.0,0.07199004]
[1760049210004,1.72576349,121570.0,121560.0,0.07199004]
[1760049210309,0.98388349,121570.0,121560.0,0.07199004]